[Event "ESTCC 50 2019"]
[Site "Mali Losinj"]
[Date "2019.09.26"]
[Round "9.23"]
[White "Martic, Zlatko"]
[Black "Wood, Peter R"]
[Result "1-0"]
[ECO "A61"]
[WhiteElo "2283"]
[BlackElo "1884"]
[Annotator "NA"]
[PlyCount "91"]
[EventDate "2019.09.18"]
[EventType "team-tourn"]
[EventCountry "CRO"]
[SourceTitle "playchess.com"]
[Source "ChessBase"]
[SourceQuality "1"]
[WhiteTeam "Croatia"]
[BlackTeam "England"]
[WhiteTeamCountry "CRO"]
[BlackTeamCountry "ENG"]
[TimeControl "40/5400+30:1800+30"]

1. d4 {[%emt 0:00:30]} Nf6 {[%emt 0:00:30]} 2. Nf3 {[%emt 0:00:30]} e6 {[%emt 0:00:30]} 3. c4 {[%emt 0:00:30]} c5 {[%emt 0:00:30]} 4. d5 {[%emt 0:00:30]} exd5 {[%emt 0:00:30]} 5. cxd5 {[%emt 0:00:30]} d6 {[%emt 0:00:00]} 6. Nc3 {[%emt 0:00:00]} g6 {[%emt 0:00:00]} 7. h3 {[%emt 0:01:00]} a6 {[%emt 0:03:30]} 8. a4 {[%emt 0:00:00]} Bg7 {[%emt 0:00:00]} 9. Bf4 {[%emt 0:00:00]} Qe7 {[%emt 0:03:00]} 10. Nd2 {[%emt 0:00:30]} O-O {[%emt 0:00:30]} 11. Nc4 {[%emt 0:00:30]} Ne8 {[%emt 0:01:30]} 12. e3 {[%emt 0:10:30]} Nd7 {[%emt 0:03:30]} 13. Be2 {[%emt 0:02:30]} Ne5 {[%emt 0:04:30]} 14. Nb6 {[%emt 0:03:30]} Rb8 {[%emt 0:00:30]} 15. O-O {[%emt 0:01:30]} Nf6 {[%emt 0:11:30]} 16. Qb3 {[%emt 0:00:00]} Nfd7 {[%emt 0:06:30]} 17. a5 {[%emt 0:02:00]} Qd8 {[%emt 0:03:30]} 18. Nca4 {[%emt 0:02:30]} Nxb6 {[%emt 0:02:30]} 19. Nxb6 {[%emt 0:01:30]} Re8 {[%emt 0:12:30]} 20. Rac1 {[%emt 0:00:30]} g5 {[%emt 0:04:30]} 21. Bh2 {[%emt 0:00:30]} g4 {[%emt 0:03:30]} 22. Nxc8 {[%emt 0:07:30]} Qxc8 {[%emt 0:01:30]} 23. hxg4 {[%emt 0:00:30]} Qd8 {[%emt 0:07:30]} 24. Qb6 {[%emt 0:19:30]} Qxb6 {[%emt 0:09:30]} 25. axb6 {[%emt 0:00:00]} Rbc8 {[%emt 0:00:38]} 26. g5 {[%emt 0:05:00]} c4 {[%emt 0:05:12]} 27. Rfd1 {[%emt 0:03:30]} Rc5 {[%emt 0:04:54]} 28. Rd2 {[%emt 0:13:30]} Rec8 {[%emt 0:02:39]} 29. f4 {[%emt 0:06:24]} Nd3 {[%emt 0:03:04]} 30. Bxd3 {[%emt 0:00:21]} cxd3 {[%emt 0:00:08]} 31. Rxc5 {[%emt 0:00:11]} Rxc5 {[%emt 0:00:13]} 32. Rxd3 {[%emt 0:00:06]} Rc1+ {[%emt 0:00:22]} 33. Kf2 {[%emt 0:00:28]} Rc2+ {[%emt 0:00:20]} 34. Kf3 {[%emt 0:00:30]} Bxb2 {[%emt 0:00:52]} 35. f5 {[%emt 0:00:30]} Rc3 {[%emt 0:03:07]} 36. Rxc3 {[%emt 0:00:30]} Bxc3 {[%emt 0:00:06]} 37. Bxd6 {[%emt 0:00:00]} a5 {[%emt 0:00:11]} 38. Ke4 {[%emt 0:00:00]} f6 {[%emt 0:02:02]} 39. gxf6 {[%emt 0:01:30]} Bxf6 {[%emt 0:00:18]} 40. Be5 {[%emt 0:01:06]} Be7 {[%emt 0:01:12]} 41. Bc7 {[%emt 0:04:54]} Kf7 {[%emt 0:02:12]} 42. d6 {[%emt 0:00:00]} Bf6 {[%emt 0:02:30]} 43. d7 {[%emt 0:00:00]} a4 {[%emt 0:00:30]} 44. d8=Q {[%emt 0:00:30]} Bxd8 {[%emt 0:00:30]} 45. Bxd8 {[%emt 0:00:30]} a3 {[%emt 0:00:30]} 46. Bc7 {[%emt 0:00:30]} 1-0

[Event "ESTCC 50 2019"]
[Site "Mali Losinj"]
[Date "2019.09.26"]
[Round "9.24"]
[White "Denning, Julie L"]
[Black "Tirkajla, Boris"]
[Result "0-1"]
[ECO "A80"]
[WhiteElo "1629"]
[BlackElo "2060"]
[Annotator "NA"]
[PlyCount "78"]
[EventDate "2019.09.18"]
[EventType "team-tourn"]
[EventCountry "CRO"]
[SourceTitle "playchess.com"]
[Source "ChessBase"]
[SourceQuality "1"]
[WhiteTeam "England"]
[BlackTeam "Croatia"]
[WhiteTeamCountry "ENG"]
[BlackTeamCountry "CRO"]
[TimeControl "40/5400+30:1800+30"]

1. d4 {[%emt 0:00:30]} f5 {[%emt 0:01:30]} 2. Bf4 {[%emt 0:00:00]} Nf6 {[%emt 0:00:00]} 3. e3 {[%emt 0:01:00]} g6 {[%emt 0:00:00]} 4. h4 {[%emt 0:00:30]} h6 {[%emt 0:04:30]} 5. Nf3 {[%emt 0:00:30]} d6 {[%emt 0:00:00]} 6. Nc3 {[%emt 0:01:30]} Bg7 {[%emt 0:00:00]} 7. Bd3 {[%emt 0:01:30]} O-O {[%emt 0:01:30]} 8. Qd2 {[%emt 0:01:30]} Nc6 {[%emt 0:00:30]} 9. e4 {[%emt 0:03:30]} Ng4 {[%emt 0:03:30]} 10. O-O-O {[%emt 0:01:30]} e6 {[%emt 0:06:30]} 11. exf5 {[%emt 0:04:30]} gxf5 {[%emt 0:06:30]} 12. Bf1 {[%emt 0:27:30]} Ne7 {[%emt 0:06:30]} 13. h5 {[%emt 0:09:30]} Bd7 {[%emt 0:06:30]} 14. Nh2 {[%emt 0:02:30]} Nxh2 {[%emt 0:05:30]} 15. Rxh2 {[%emt 0:00:30]} Rf6 {[%emt 0:04:30]} 16. g4 {[%emt 0:03:30]} Qf8 {[%emt 0:04:30]} 17. g5 {[%emt 0:06:30]} hxg5 {[%emt 0:00:30]} 18. Bxg5 {[%emt 0:00:30]} Bh6 {[%emt 0:00:30]} 19. Rg2 {[%emt 0:01:30]} Kh7 {[%emt 0:00:30]} 20. f4 {[%emt 0:02:30]} Rf7 {[%emt 0:00:30]} 21. Bd3 {[%emt 0:03:30]} Ng8 {[%emt 0:07:30]} 22. Rdg1 {[%emt 0:01:30]} Nf6 {[%emt 0:00:30]} 23. Qe2 {[%emt 0:02:30]} Kh8 {[%emt 0:02:30]} 24. Bxf6+ {[%emt 0:07:44]} Rxf6 {[%emt 0:01:30]} 25. Qf3 {[%emt 0:00:15]} c6 {[%emt 0:03:30]} 26. Rg6 {[%emt 0:03:59]} Be8 {[%emt 0:01:30]} 27. R6g3 {[%emt 0:02:25]} Bf7 {[%emt 0:06:30]} 28. Ne2 {[%emt 0:03:47]} e5 {[%emt 0:01:30]} 29. dxe5 {[%emt 0:02:57]} dxe5 {[%emt 0:00:00]} 30. Qh1 {[%emt 0:01:55]} e4 {[%emt 0:00:00]} 31. Bxe4 {[%emt 0:00:21]} fxe4 {[%emt 0:00:30]} 32. Qxe4 {[%emt 0:00:26]} Re8 {[%emt 0:01:30]} 33. Qd4 {[%emt 0:00:48]} Qd6 {[%emt 0:00:30]} 34. Qxd6 {[%emt 0:01:26]} Rxd6 {[%emt 0:00:30]} 35. R3g2 {[%emt 0:00:25]} Bc4 {[%emt 0:03:30]} 36. Nc3 {[%emt 0:01:43]} Bxf4+ {[%emt 0:00:30]} 37. Kb1 {[%emt 0:00:06]} Rde6 {[%emt 0:01:30]} 38. b3 {[%emt 0:00:49]} Re1+ {[%emt 0:00:00]} 39. Rxe1 {[%emt 0:00:09]} Rxe1+ {[%emt 0:00:00]} 0-1